Cogmind - Beta 10.1 @@@ ROGUE MODE // 2021.06.11 @ 09:48:49 // Winter2019/RPGLIKE Player: Farfid Result: Escaped! Performance ------------- Evolutions (9) 4500 Regions Visited (27) 5400 Robots Destroyed (282) 1410 Value Destroyed (12756) 12756 Prototype IDs (71) 1420 Alien Tech Used (1) 200 Bonus (8889) 8889 TOTAL SCORE: 34575 Bonus ------- Triggered Max Security 1000 High Alert Combat Kills 2527 Follower Combat Kills 1130 Entered Garrisons 200 Used RIF Installer 500 Aligned with FarCom 300 Met Data Miner 300 Met Imprinter 300 Win 3000 Friendly Fire -368 Cogmind --------- Core Integrity 1173/1600 Matter 265/300 Energy 672/1400 System Corruption 4% Temperature Cool (30) Movement Hovering (44) Location To Epsilon Eridani Parts ------- > --- POWER (2) -------- Quantum Reactor Quantum Reactor > --- PROPULSION (6) --- Improved Antigrav System Improved Antigrav System Antigrav Array Combat Linear Gravjet Combat Linear Gravjet > --- UTILITY (11) ----- Advanced Cooling System Advanced Energy Well Gravity Neutralizing Apparatus Experimental Signal Interpreter Advanced Core Analyzer Energy Filter Advanced Particle Accelerator Improved Weapon Cycler Advanced Shield Generator Corruption Screen > --- WEAPON (4) ------- Compact HERF Cannon Cooled Phase Cannon Enhanced Nova Cannon Enhanced Nova Cannon > --- INVENTORY (4) ---- Protomatter-82 Protomatter-82 Protomatter-66 Improved Stasis Canceller Peak State ------------ > --- POWER ------------ Quantum Reactor Quantum Reactor > --- PROPULSION ------- Antigrav Array Antigrav Array Combat Linear Gravjet Combat Linear Gravjet > --- UTILITY ---------- Advanced Cooling System Advanced Energy Well Gravity Neutralizing Apparatus Experimental Signal Interpreter Experimental Terrain Scanner Advanced Core Analyzer Energy Filter Advanced Particle Accelerator Improved Weapon Cycler Advanced Shield Generator Corruption Screen > --- WEAPON ----------- Compact HERF Cannon Cooled Phase Cannon Enhanced Nova Cannon Enhanced Nova Cannon > --- INVENTORY -------- Protomatter Protomatter Protomatter Improved Stasis Canceller [Rating: 176] Favorites ----------- Power Enhanced Fission Core Engine Improved Deuterium Engine Power Core Enhanced Fission Core Reactor Light Quantum Reactor Propulsion Improved Airjet Wheel Wheel Hover Unit Improved Airjet Utility Energy Filter Device Energy Filter Storage Advanced Energy Well Processor Experimental Signal Interpreter Hackware Advanced Hacking Suite Protection Medium Armor Plating Weapon Cooled Phase Cannon Energy Gun Force Rifle Energy Cannon Cooled Phase Cannon Ballistic Gun Shotgun Ballistic Cannon Improved Light Cannon Launcher Shock Bomb Launcher Special Weapon Improved Remote Datajack Build | -11 -10 -10 -10 -9 -8 -7 -7 -7 -7 -6 -6 -6 -6 -6 -5 -5 -5 -5 -5 -4 -4 -4 -4 -3 -3 -2 -1 ------- Run | Scr Mat Min Exi Min Mat Fac Low Low Zio Pro Fac Low Low Dat Pro Fac Was Fac Gar Fac Upp Upp War Pro Res Res Acc Slots Evolved 18 | 3 . . . 1 1 1 . . . . 3 1 . 1 . 2 . 1 . 1 1 . . 1 1 . . Power 1 | . . . . . . . . . . . . . . 1 . . . . . . . . . . . . . Propulsion 5 | 1 . . . 1 . . . . . . 1 . . . . 1 . . . . 1 . . . . . . Utility 9 | 1 . . . . 1 1 . . . . 1 . . . . 1 . 1 . 1 . . . 1 1 . . Weapon 3 | 1 . . . . . . . . . . 1 1 . . . . . . . . . . . . . . . Parts Attached 166 | 5 9 . . 1 6 9 3 7 2 2 14 5 1 . 7 18 1 9 . 7 6 2 . 9 21 8 14 Power 22 | 1 1 . . . 1 1 . . . . 1 1 . . 3 4 . . . . . . . 1 3 1 4 Engine 5 | 1 1 . . . 1 1 . . . . 1 . . . . . . . . . . . . . . . . Core 8 | . . . . . . . . . . . . 1 . . 2 4 . . . . . . . . 1 . . Reactor 9 | . . . . . . . . . . . . . . . 1 . . . . . . . . 1 2 1 4 Propulsion 32 | 2 2 . . 1 . . . 1 1 1 4 . . . . 3 . 1 . 1 1 . . . 8 . 6 Treads . | . . . . . . . . . . . . . . . . . . . . . . . . . . . . Leg . | . . . . . . . . . . . . . . . . . . . . . . . . . . . . Wheel 2 | 2 . . . . . . . . . . . . . . . . . . . . . . . . . . . Hover 30 | . 2 . . 1 . . . 1 1 1 4 . . . . 3 . 1 . 1 1 . . . 8 . 6 Flight . | . . . . . . . . . . . . . . . . . . . . . . . . . . . . Utility 59 | . 1 . . . 2 2 3 1 . 1 5 . . . 4 7 1 3 . 3 4 2 . 8 7 4 1 Device 44 | . . . . . . 2 1 1 . . 2 . . . 4 4 1 3 . 3 3 2 . 8 6 3 1 Storage 1 | . . . . . . . . . . . . . . . . . . . . . . . . . . 1 . Processor 7 | . . . . . 2 . . . . . 2 . . . . 2 . . . . 1 . . . . . . Hackware 5 | . . . . . . . 2 . . 1 1 . . . . 1 . . . . . . . . . . . Protection 2 | . 1 . . . . . . . . . . . . . . . . . . . . . . . 1 . . Artifact . | . . . . . . . . . . . . . . . . . . . . . . . . . . . . Weapon 53 | 2 5 . . . 3 6 . 5 1 . 4 4 1 . . 4 . 5 . 3 1 . . . 3 3 3 Energy Gun 12 | 1 2 . . . . 2 . . . . 2 1 . . . 2 . 1 . . . . . . . . 1 Energy Cannon 31 | . . . . . 1 4 . 3 1 . 2 3 1 . . 1 . 3 . 3 1 . . . 3 3 2 Ballistic Gun 4 | 1 1 . . . 2 . . . . . . . . . . . . . . . . . . . . . . Ballistic Cannon 2 | . 2 . . . . . . . . . . . . . . . . . . . . . . . . . . Launcher 3 | . . . . . . . . 2 . . . . . . . . . 1 . . . . . . . . . Special Weapon 1 | . . . . . . . . . . . . . . . . 1 . . . . . . . . . . . Impact Weapon . | . . . . . . . . . . . . . . . . . . . . . . . . . . . . Slashing Weapon . | . . . . . . . . . . . . . . . . . . . . . . . . . . . . Piercing Weapon . | . . . . . . . . . . . . . . . . . . . . . . . . . . . . Special Melee Weapon . | . . . . . . . . . . . . . . . . . . . . . . . . . . . . Unidentified Prototypes 20 | . . . . . 1 2 1 . . . 2 . . . . 4 . 3 . 1 . . . 1 3 1 1 Parts Lost 3 | . . . . . . . . . . . 1 . . . . . . . . 1 . 1 . . . . . Power . | . . . . . . . . . . . . . . . . . . . . . . . . . . . . Propulsion . | . . . . . . . . . . . . . . . . . . . . . . . . . . . . Utility 2 | . . . . . . . . . . . . . . . . . . . . 1 . 1 . . . . . Weapon 1 | . . . . . . . . . . . 1 . . . . . . . . . . . . . . . . Highest Loss Streak 1 | . . . . . . . . . . . 1 . . . . . . . . 1 . 1 . . . . . Average Slot Usage (%) 95 | . 71 85 85 86 89 99 95 92 100 100 98 100 99 100 95 99 100 98 100 96 99 99 100 99 92 90 91 Engine 3 | . 14 14 14 12 11 10 9 9 9 9 7 . . . . . . . . . . . . . . . . Core 4 | . . . . . . . . . . . . 6 6 6 8 11 11 10 10 10 9 9 9 5 3 . . Reactor 1 | . . . . . . . . . . . . . . . . . . . . . . . . 3 4 8 7 Hover 25 | . 4 28 28 36 33 30 28 20 27 27 29 26 26 26 25 26 27 26 26 25 27 28 28 27 20 17 17 Device 25 | . . . . . . 16 19 23 27 27 25 26 26 26 25 25 22 23 26 25 28 28 33 35 36 33 34 Processor 8 | . . . . . 11 20 14 9 9 9 11 6 6 6 6 6 11 10 10 10 9 9 9 9 9 8 8 Hackware 3 | . . . . . . . 3 12 9 9 7 6 6 6 6 5 5 5 5 5 4 3 . . . . . Protection 1 | . . 14 14 12 11 2 . . . . . . . . . . . . . . . . . . . 1 . Energy Gun 1 | . 7 . . . . 1 . . . . . 10 6 6 6 5 5 1 . . . . . . . . . Energy Cannon 13 | . . . . . 5 17 19 14 9 9 6 8 12 13 12 11 11 14 15 15 16 19 19 17 17 17 17 Ballistic Cannon 1 | . 1 28 28 25 . . . . . . . . . . . . . . . . . . . . . . . Launcher 2 | . . . . . . . . 3 9 9 7 6 6 6 6 5 5 4 5 5 2 . . . . . . Naked Turns . | . . . . . . . . . . . . . . . . . . . . . . . . . . . . Heaviest Build 114 | 6 20 20 20 20 20 27 32 30 32 32 39 49 49 49 62 67 66 67 67 81 84 85 85 88 104 114 107 Greatest Support 153 | 25 25 21 21 29 29 29 29 32 35 36 58 58 58 58 58 73 73 73 73 86 103 103 103 103 111 119 153 Greatest Overweight (x) 1 | . . . . . . . 1 1 . . . . . . 1 1 . . . 1 . . . . 1 1 . Average Overweight (x) . | . . . . . . . . . . . . . . . . . . . . . . . . . . . . Largest Inventory Capacity 4 | 1 1 1 2 2 2 2 3 3 3 3 3 3 3 3 3 3 3 3 3 4 4 4 4 4 4 4 4 Average Capacity 3 | 1 1 1 1 2 2 2 2 3 3 3 3 3 3 3 3 3 3 3 3 3 4 4 4 4 4 4 4 Most Carried 4 | . 1 1 2 2 2 2 3 3 3 2 3 3 3 3 3 3 3 3 3 4 4 4 3 4 4 4 4 Average Carried 2 | . . 1 1 2 2 1 2 2 2 2 2 2 2 3 2 2 2 3 2 3 3 3 3 2 2 3 4 Final Capacity 4 | 1 1 1 2 2 2 2 3 3 3 3 3 3 3 3 3 3 3 3 3 4 4 4 4 4 4 4 4 Final Carried 4 | . 1 1 2 2 2 2 3 3 2 2 3 3 3 3 3 3 3 3 2 4 4 3 3 1 4 4 4 Class Distribution -------------------- 50% | Hacker-Scout 35% | Scout 8% | Mutant 4% | Hacker-Skirmisher Dominant Class ---------------- Mutant | -10/Materials Mutant | -10/Mines Mutant | -10/Exiles Mutant | -9/Mines Scout | -8/Materials Scout | -7/Factory Scout | -7/Lower Caves Hacker-Skirmisher | -7/Lower Caves Hacker-Scout | -7/Zion Hacker-Scout | -6/Proximity Caves Hacker-Scout | -6/Factory Hacker-Scout | -6/Lower Caves Hacker-Scout | -6/Lower Caves Hacker-Scout | -6/Data Miner Hacker-Scout | -5/Proximity Caves Hacker-Scout | -5/Factory Hacker-Scout | -5/Waste Hacker-Scout | -5/Factory Hacker-Scout | -5/Garrison Hacker-Scout | -4/Factory Hacker-Scout | -4/Upper Caves Hacker-Scout | -4/Upper Caves Scout | -4/Warlord Scout | -3/Proximity Caves Scout | -3/Research Scout | -2/Research Scout | -1/Access Resources | -11 -10 -10 -10 -9 -8 -7 -7 -7 -7 -6 -6 -6 -6 -6 -5 -5 -5 -5 -5 -4 -4 -4 -4 -3 -3 -2 -1 ----------- Run | Scr Mat Min Exi Min Mat Fac Low Low Zio Pro Fac Low Low Dat Pro Fac Was Fac Gar Fac Upp Upp War Pro Res Res Acc Matter Collected 2771 | 168 136 133 . 370 240 90 40 198 37 30 140 50 10 . 110 222 . 105 50 75 60 15 . 90 210 80 112 Remotely . | . . . . . . . . . . . . . . . . . . . . . . . . . . . . Salvage Created 14338 | . 139 79 . 187 266 165 . 833 . 416 1667 205 198 . 280 1358 359 172 1937 732 266 936 . 855 292 1210 1786 Parts 622 | . 10 6 . 11 18 19 . 36 . 13 58 16 7 . 22 42 15 12 51 24 10 36 . 19 40 44 113 Haulers Intercepted 16 | . . . . . . . . . . . 3 . . . . 6 . 2 . 2 . . . 1 1 1 . Recyclers Shooed 9 | . 1 . . 2 . . . . . . 3 . . . . . . . . . . . . . . 1 2 Parts Field Recycled . | . . . . . . . . . . . . . . . . . . . . . . . . . . . . Retrieved Matter . | . . . . . . . . . . . . . . . . . . . . . . . . . . . . Parts Self-Destructed 152 | . . . . . . . . 20 . 12 . 16 7 . 23 . . . . . 12 44 . 18 . . . Prevented 20 | . . . . . . . . 13 . . . . . . 7 . . . . . . . . . . . . Kills | -11 -10 -10 -10 -9 -8 -7 -7 -7 -7 -6 -6 -6 -6 -6 -5 -5 -5 -5 -5 -4 -4 -4 -4 -3 -3 -2 -1 ------- Run | Scr Mat Min Exi Min Mat Fac Low Low Zio Pro Fac Low Low Dat Pro Fac Was Fac Gar Fac Upp Upp War Pro Res Res Acc Combat Hostiles Destroyed 205 | . 5 1 . 11 9 2 . 17 . 7 20 3 3 . 11 14 3 1 28 5 5 18 . 8 8 9 17 Guns 16 | . 5 . . . 7 . . . . . . 3 . . 1 . . . . . . . . . . . . Cannons 153 | . . 1 . 11 2 2 . 6 . 7 15 . 2 . 4 9 3 1 25 3 5 18 . 7 8 8 16 AOE 24 | . . . . . . . . 9 . . 1 . . . 6 5 . . 3 . . . . . . . . Classes Destroyed 22 | . 2 1 . 3 2 1 . 2 . 2 2 1 1 . 1 . 1 1 1 . . 1 . . . . . Worker 17 | . . . . 1 . 2 . . . . 4 . . . . . . . . 3 . . . . . 2 5 Builder 4 | . . . . . . . . . . . . . . . . . . 1 . 1 . . . . . 2 . Tunneler 3 | . . 1 . . . . . . . . . . . . . . . 1 . 1 . . . . . . . Hauler 16 | . . . . . . . . . . . 3 . . . . 6 . 2 . 2 . . . 1 1 1 . Recycler 11 | . . . . 1 . . . . . . 2 . . . . 1 . . . . . . . . . 4 3 Minesweeper 1 | . . . . . . . . . . . . 1 . . . . . . . . . . . . . . . Mechanic 2 | . . . . . . . . . . . 1 . . . . . . . . 1 . . . . . . . Watcher 20 | . . . . . . 3 . . . . 1 . . . . . . . . 3 . . . . 2 4 7 Swarmer 33 | . 2 . . 6 . 1 . 3 . . 1 . . . 4 5 . . 5 . . 2 . . . 4 . Grunt 93 | . 3 1 . 3 7 . . 11 . . 12 2 . . 5 6 . 1 13 2 2 12 . 8 4 1 . Brawler 7 | . . . . . 1 . . 1 . 2 . . . . . . . . 1 1 1 . . . . . . Duelist 3 | . . . . . . . . 1 . . 1 . . . . . . . . 1 . . . . . . . Protector 1 | . . . . . . . . . . 1 . . . . . . . . . . . . . . . . . Sentry 29 | . . . . . 1 1 . . . 2 5 . 1 . . 1 . . 6 1 1 1 . . 1 4 4 Demolisher 2 | . . . . . . . . . . 2 . . . . . . . . . . . . . . . . . Specialist 1 | . . . . . . . . . . . . . . . . . . . 1 . . . . . . . . Hunter 14 | . . . . . . . . . . . . . 2 . 1 2 . . 1 . 1 1 . . . . 6 Programmer 12 | . . . . . . . . 1 . . 1 1 . . . . . . . . . . . . 3 . 6 Behemoth 4 | . . . . . . . . . . . . . . . 1 . . . 1 . . 1 . . . . 1 Compactor 3 | . . . . . . . . . . . . . . . . . 3 . . . . . . . . . . Packrat 1 | . . . . . . . . . . . . . . . . . . . . . . 1 . . . . . Assembled 2 | . . . . 2 . . . . . . . . . . . . . . . . . . . . . . . Surgeon 1 | . . . . . . . . . . . . . . . . . . . 1 . . . . . . . . Martyr 1 | . . . . . . . . . . . . . . . . . . 1 . . . . . . . . . Mutant 1 | . . . . . . . . . . . . . . . . . . . . . . 1 . . . . . Best Kill Streak 9 | . 2 1 . 4 4 2 . 6 . 3 6 3 2 . 4 6 1 5 9 6 3 3 . 6 8 6 7 Combat Bots Only 9 | . 2 1 . 3 4 1 . 6 . 3 5 2 2 . 4 6 1 1 9 4 3 3 . 5 4 4 3 Max Kills in Single Turn 2 | . 1 1 . 1 1 2 . 2 . 1 1 1 1 . 2 2 1 2 2 2 1 1 . 2 1 2 2 Gunslinging . | . . . . . . . . . . . . . . . . . . . . . . . . . . . . Exploded 2 | . . . . . . . . 2 . . 1 . . . 2 2 . . 2 . . . . . . . . Melee . | . . . . . . . . . . . . . . . . . . . . . . . . . . . . Uniques/NPCs Destroyed . | . . . . . . . . . . . . . . . . . . . . . . . . . . . . Combat | -11 -10 -10 -10 -9 -8 -7 -7 -7 -7 -6 -6 -6 -6 -6 -5 -5 -5 -5 -5 -4 -4 -4 -4 -3 -3 -2 -1 -------- Run | Scr Mat Min Exi Min Mat Fac Low Low Zio Pro Fac Low Low Dat Pro Fac Was Fac Gar Fac Upp Upp War Pro Res Res Acc Damage Taken 8399 | . 153 14 . 278 349 101 . 714 . 132 684 15 282 . 665 804 31 16 1255 219 163 612 62 138 211 439 1062 Core 6661 | . 124 11 . 207 234 79 . 581 . 105 542 12 221 . 552 655 27 12 1004 171 130 491 48 114 171 318 852 Absorbed by Shields 731 | . . . . . . . . . . 11 . . . . . . . . . . . 107 22 42 76 157 316 Redirected to Core 5599 | . 74 11 . 157 202 61 . 456 . 105 489 12 202 . 375 541 15 12 873 171 122 436 48 79 135 303 720 Core Remaining (%) 94 | 100 . . . 73 100 . . . . 100 . . . . 100 . . . 100 . . . . 100 100 94 73 Volleys Fired 920 | . 13 7 . 45 28 14 11 60 6 36 125 10 10 . 33 72 25 5 62 33 11 85 1 41 31 48 108 Largest 3 | . 2 2 . 2 2 2 2 2 1 1 1 3 3 . 3 3 2 3 3 3 3 3 1 3 3 3 3 Hottest 360 | . 90 78 . 78 91 180 60 60 120 120 120 260 268 . 268 268 188 188 105 120 120 120 120 120 120 280 360 Shots Fired 1591 | . 26 14 . 90 56 25 22 85 6 36 122 29 28 . 81 122 47 11 166 85 25 130 1 56 51 88 189 Gun 135 | . 26 . . . 45 1 . . . . 1 18 10 . 24 9 . 1 . . . . . . . . . Cannon 1407 | . . 14 . 90 11 24 22 54 6 36 121 11 18 . 49 105 47 10 164 85 25 130 1 56 51 88 189 Launcher 48 | . . . . . . . . 31 . . . . . . 8 7 . . 2 . . . . . . . . Special 1 | . . . . . . . . . . . . . . . . 1 . . . . . . . . . . . Kinetic 171 | . 22 14 . 90 45 . . . . . . . . . . . . . . . . . . . . . . Thermal 1302 | . . . . . 11 25 22 54 6 36 76 29 28 . 73 109 47 10 164 85 25 130 1 56 47 80 188 Explosive . | . . . . . . . . . . . . . . . . . . . . . . . . . . . . Electromagnetic 117 | . 4 . . . . . . 31 . . 46 . . . 8 12 . 1 2 . . . . . 4 8 1 Robot Hit Streak 51 | . 6 3 . 9 11 7 . 19 . 19 33 12 15 . 12 22 30 6 18 14 14 51 . 14 13 12 21 Robot Miss Streak 4 | . 2 2 . 4 3 2 . 3 . . 2 3 1 . 3 2 1 . 2 3 2 1 . 1 1 2 3 Penetration Max . | . . . . . . . . . . . . . . . . . . . . . . . . . . . . Secondary Targets 1 | . 1 . . . . . . . . . . . . . . . . . . . . . . . . . . Max Gunslinging Chain 1 | . 1 . . . . . . . . . . . . . . . . . . . . . . . . . . Shots Hit Robots 843 | . 18 8 . 38 49 12 . 46 . 18 62 9 17 . 43 74 36 6 107 52 16 62 . 10 16 51 93 Core Hits 467 | . 10 3 . 14 26 7 . 31 . 15 41 6 3 . 20 37 9 7 52 33 9 36 . 18 16 25 49 Critical Hits 19 | . . 1 . 1 . 1 . . . . . 1 1 . 1 . . . 2 . . 7 . . . 1 3 Critical Kills 5 | . . . . 1 . . . . . . . 1 . . . . . . 1 . . . . . . 1 1 Critical Parts Destroyed 11 | . . 1 . . . 1 . . . . . . 1 . 1 . . . 1 . . 4 . . . . 2 Melee Attacks . | . . . . . . . . . . . . . . . . . . . . . . . . . . . . Impact . | . . . . . . . . . . . . . . . . . . . . . . . . . . . . Slashing . | . . . . . . . . . . . . . . . . . . . . . . . . . . . . Piercing . | . . . . . . . . . . . . . . . . . . . . . . . . . . . . Sneak Attacks . | . . . . . . . . . . . . . . . . . . . . . . . . . . . . Combat Hostiles . | . . . . . . . . . . . . . . . . . . . . . . . . . . . . Follow-up Attacks . | . . . . . . . . . . . . . . . . . . . . . . . . . . . . Damage Inflicted 42841 | . 226 183 . 802 838 315 . 2015 . 1232 4299 279 702 . 1822 2936 1600 754 4567 2528 693 4132 . 1655 1374 3233 6656 Guns 1940 | . 224 . . . 673 11 . . . . . 241 232 . 401 158 . . . . . . . . . . . Cannons 37465 | . . 183 . 802 165 304 . 1017 . 1232 3798 38 470 . 1025 2502 1600 284 4225 2085 693 4132 . 1655 1374 3233 6648 Explosions 3295 | . . . . . . . . 998 . . 402 . . . 396 276 . 438 342 443 . . . . . . . Melee . | . . . . . . . . . . . . . . . . . . . . . . . . . . . . Ramming 141 | . 2 . . . . . . . . . 99 . . . . . . 32 . . . . . . . . 8 Kinetic 1812 | . 154 183 . 802 673 . . . . . . . . . . . . . . . . . . . . . . Thermal 36140 | . . . . . 165 315 . 1101 . 1232 3050 279 702 . 1426 2632 1600 284 4398 2085 693 4132 . 1655 1078 2767 6546 Explosive 638 | . . . . . . . . . . . . . . . . . . 438 . 200 . . . . . . . Electromagnetic 4110 | . 70 . . . . . . 914 . . 1150 . . . 396 304 . . 169 243 . . . . 296 466 102 Impact . | . . . . . . . . . . . . . . . . . . . . . . . . . . . . Slashing . | . . . . . . . . . . . . . . . . . . . . . . . . . . . . Piercing . | . . . . . . . . . . . . . . . . . . . . . . . . . . . . Highest Corruption 20 | . . . . . . . . . . . 2 2 2 2 2 1 19 19 20 . . 2 4 4 1 . 4 Average Corruption 5 | . . . . . . . . . . . 1 2 2 2 2 1 13 19 19 . . 2 3 4 1 . 2 Corruption Purged . | . . . . . . . . . . . . . . . . . . . . . . . . . . . . Effects 114 | . . . . . . . . . . . 3 3 2 1 10 2 13 7 62 . . . . 6 . . 5 Message Errors 13 | . . . . . . . . . . . 1 . 1 . 3 . 3 . 2 . . . . 1 . . 2 Matter Fused 10 | . . . . . . . . . . . . . . . . . . 1 7 . . . . . . . 2 Heat Flow Errors 8 | . . . . . . . . . . . . . 1 1 2 . . 1 2 . . . . 1 . . . Energy Discharges 7 | . . . . . . . . . . . . . . . 1 1 . . 4 . . . . . . . 1 Data Loss (minor) 8 | . . . . . . . . . . . . . . . 3 . 1 . 2 . . . . 2 . . . Data Loss (major) 3 | . . . . . . . . . . . . . . . . . 1 . 2 . . . . . . . . Misdirections 13 | . . . . . . . . . . . . . . . . . 2 . 11 . . . . . . . . Targeting Errors 41 | . . . . . . . . . . . 1 2 . . 1 1 4 4 26 . . . . 2 . . . Weapon Failures 11 | . . . . . . . . . . . 1 1 . . . . 2 1 6 . . . . . . . . Overload Shots 39 | . . . . . . 4 . . . . 2 . . . . . . . . . . . . . . . 33 Effects 4 | . . . . . . . . . . . 1 . . . . . . . . . . . . . . . 3 Energy Bleed 1 | . . . . . . . . . . . . . . . . . . . . . . . . . . . 1 Heat Surge 1 | . . . . . . . . . . . . . . . . . . . . . . . . . . . 1 Short Circuit 1 | . . . . . . . . . . . . . . . . . . . . . . . . . . . 1 Meltdown 1 | . . . . . . . . . . . 1 . . . . . . . . . . . . . . . . Overflow Damage 1649 | . . . . 29 . 32 . 40 . 28 163 . 10 . 31 60 . 85 130 136 23 184 . 69 73 357 199 Projectiles 1469 | . . . . 29 . 32 . 32 . 28 142 . 10 . 31 60 . . 94 106 23 184 . 69 73 357 199 Explosions 167 | . . . . . . . . 8 . . 18 . . . . . . 75 36 30 . . . . . . . Melee 13 | . . . . . . . . . . . 3 . . . . . . 10 . . . . . . . . . Knockbacks 16 | . . 3 . 11 . . . . . . 1 . . . . . . 1 . . . . . . . . . Impact 2 | . . . . . . . . . . . 1 . . . . . . 1 . . . . . . . . . Kinetic 14 | . . 3 . 11 . . . . . . . . . . . . . . . . . . . . . . . Secondary . | . . . . . . . . . . . . . . . . . . . . . . . . . . . . Self-Inflicted Damage 327 | . 1 . . . . . . 60 . . 205 . . . 7 . . 16 6 28 . . . . . . 4 Shots 12 | . . . . . . . . 6 . . 3 . . . 1 . . . 1 1 . . . . . . . Rammed 9 | . 1 . . . . . . . . . 6 . . . . . . 1 . . . . . . . . 1 Targets Rammed 9 | . 1 . . . . . . . . . 6 . . . . . . 1 . . . . . . . . 1 Kicked . | . . . . . . . . . . . . . . . . . . . . . . . . . . . . Crushed . | . . . . . . . . . . . . . . . . . . . . . . . . . . . . Highest Temperature 321 | . 78 101 . 321 89 60 . . 108 162 120 144 192 131 199 18 . 243 101 . . . . 118 281 130 166 Average Temperature 65 | . 33 46 . 103 71 20 . . 46 54 37 59 101 70 77 8 . 146 43 . . . . 69 183 50 48 Received Heat Transfer 1660 | . 30 9 . 92 171 . . 171 . . 162 9 . . 264 171 9 . 363 27 . 98 . 30 12 24 18 Effects 1 | . . . . 1 . . . . . . . . . . . . . . . . . . . . . . . Matter Decay 1 | . . . . 1 . . . . . . . . . . . . . . . . . . . . . . . Siege Activations . | . . . . . . . . . . . . . . . . . . . . . . . . . . . . Robots Corrupted 9 | . . . . . . . . 2 . . 5 . . . . . . . . . . . . . . 2 . Combat Hostiles 5 | . . . . . . . . 2 . . 3 . . . . . . . . . . . . . . . . Parts Fried 41 | . . . . . . . . 5 . . 18 . . . 1 1 . . . 1 . . . . 3 11 1 Impact Corruptions 2 | . . . . . . . . . . . 1 . . . . . . 1 . . . . . . . . . Robots Melted 7 | . . . . . . . . . . . 1 . 1 . . . . . . 2 . . . 1 . 1 1 Combat Hostiles 7 | . . . . . . . . . . . 1 . 1 . . . . . . 2 . . . 1 . 1 1 Parts Melted 83 | . . . . . . . . 2 . 6 8 1 7 . 5 6 . . 14 9 . 8 . 1 . 3 13 Heat Transferred 40482 | . . . . . 296 408 . 1395 . 2004 5163 333 759 . 1681 3311 2000 350 5498 2288 721 5616 . 2444 629 1887 3699 Parts Sabotaged . | . . . . . . . . . . . . . . . . . . . . . . . . . . . . Parts Stolen 1 | . . . . . . . . 1 . . . . . . . . . . . . . . . . . . . Parts Stripped . | . . . . . . . . . . . . . . . . . . . . . . . . . . . . Power Chain Reactions 8 | . . . . . . . . 1 . . 3 . . . 1 2 . . 1 . . . . . . . . Missiles Intercepted . | . . . . . . . . . . . . . . . . . . . . . . . . . . . . Alert | -11 -10 -10 -10 -9 -8 -7 -7 -7 -7 -6 -6 -6 -6 -6 -5 -5 -5 -5 -5 -4 -4 -4 -4 -3 -3 -2 -1 ------- Run | Scr Mat Min Exi Min Mat Fac Low Low Zio Pro Fac Low Low Dat Pro Fac Was Fac Gar Fac Upp Upp War Pro Res Res Acc Peak Influence 1746 | . 203 118 . 210 321 150 . . . . 462 . . . . 499 246 825 1712 1402 . . . . 259 315 1746 Initial 898 | . . 78 . . 81 145 . . . . 78 . . . . 142 128 172 577 898 . . . . . 145 37 Average 421 | . 62 113 . 103 211 77 . . . . 308 . . . . 297 181 601 1407 1095 . . . . 83 198 641 Maximum Alert Level 5 | . 1 . . 1 1 . . . . . 2 . . . . 2 1 3 5 4 . . . . 1 1 5 Low Security (%) 43 | 100 97 100 . 83 49 100 . . . . 17 . . . . 16 63 12 . . . . . . 88 43 34 Level 1 27 | . 2 . . 16 50 . . . . . 65 . . . . 59 36 21 . . . . . . 11 56 7 Level 2 7 | . . . . . . . . . . . 17 . . . . 24 . 11 3 . . . . . . . 8 Level 3 10 | . . . . . . . . . . . . . . . . . . 53 13 61 . . . . . . 33 Level 4 5 | . . . . . . . . . . . . . . . . . . . 36 38 . . . . . . . Level 5 4 | . . . . . . . . . . . . . . . . . . . 46 . . . . . . . . High Security . | . . . . . . . . . . . . . . . . . . . . . . . . . . . . Max Security 2 | . . . . . . . . . . . . . . . . . . . . . . . . . . . 15 Squads Dispatched 37 | . 1 . . . . 3 . . . . 6 . . . 1 4 . 4 . 2 . 1 . . 3 2 10 Investigation 13 | . 1 . . . . 2 . . . . 2 . . . 1 2 . 1 . . . 1 . . 1 . 2 Extermination 6 | . . . . . . . . . . . 2 . . . . . . . . . . . . . 1 1 2 Reinforcement 10 | . . . . . . 1 . . . . 2 . . . . 1 . 2 . 2 . . . . 1 1 . Assault 7 | . . . . . . . . . . . . . . . . 1 . . . . . . . . . . 6 Garrison 1 | . . . . . . . . . . . . . . . . . . 1 . . . . . . . . . Intercept . | . . . . . . . . . . . . . . . . . . . . . . . . . . . . Construction Impeded 3 | . . . . . . . . . . . 1 . . . . . . . . 1 . . . . . 1 . Haulers Reinforced 5 | . . . . . . . . . . . 1 . . . . 1 . 2 . 1 . . . . . . . Stealth | -11 -10 -10 -10 -9 -8 -7 -7 -7 -7 -6 -6 -6 -6 -6 -5 -5 -5 -5 -5 -4 -4 -4 -4 -3 -3 -2 -1 --------- Run | Scr Mat Min Exi Min Mat Fac Low Low Zio Pro Fac Low Low Dat Pro Fac Was Fac Gar Fac Upp Upp War Pro Res Res Acc Distress Signals 18 | . 3 . . 1 2 1 . . . 8 . . . . . . . 1 . 2 . . . . . . . Communications Jammed . | . . . . . . . . . . . . . . . . . . . . . . . . . . . . Distress Signals . | . . . . . . . . . . . . . . . . . . . . . . . . . . . . Times Spotted 295 | . 18 2 . 11 13 12 . 25 . 6 23 2 3 . 14 19 6 4 34 11 6 19 . 8 14 15 30 Peak Tracking Total 8 | . 8 2 . 3 7 3 . 4 . 3 6 1 2 . 4 5 2 2 7 4 4 4 . 5 5 4 7 Tactical Retreats 29 | . 1 1 . . 1 3 . 6 . . 5 . . . . 2 . . 2 1 . 1 . 2 1 1 2 Traps | -11 -10 -10 -10 -9 -8 -7 -7 -7 -7 -6 -6 -6 -6 -6 -5 -5 -5 -5 -5 -4 -4 -4 -4 -3 -3 -2 -1 ------- Run | Scr Mat Min Exi Min Mat Fac Low Low Zio Pro Fac Low Low Dat Pro Fac Was Fac Gar Fac Upp Upp War Pro Res Res Acc Traps Triggered 24 | . . . . . . . . 1 . 1 6 . . . . 3 . . 6 1 . . 1 . 2 2 1 Indirectly 2 | . . . . . . . . 1 . . . . . . . . . . . 1 . . . . . . . Trap Hack Attempts . | . . . . . . . . . . . . . . . . . . . . . . . . . . . . Triggered . | . . . . . . . . . . . . . . . . . . . . . . . . . . . . Disarmed . | . . . . . . . . . . . . . . . . . . . . . . . . . . . . Reprogrammed . | . . . . . . . . . . . . . . . . . . . . . . . . . . . . Reused . | . . . . . . . . . . . . . . . . . . . . . . . . . . . . Traps Extracted . | . . . . . . . . . . . . . . . . . . . . . . . . . . . . Installed . | . . . . . . . . . . . . . . . . . . . . . . . . . . . . Triggered . | . . . . . . . . . . . . . . . . . . . . . . . . . . . . Machines | -11 -10 -10 -10 -9 -8 -7 -7 -7 -7 -6 -6 -6 -6 -6 -5 -5 -5 -5 -5 -4 -4 -4 -4 -3 -3 -2 -1 ---------- Run | Scr Mat Min Exi Min Mat Fac Low Low Zio Pro Fac Low Low Dat Pro Fac Was Fac Gar Fac Upp Upp War Pro Res Res Acc Machines Disabled 37 | . . . . . 1 . 1 . . . 1 . . . . 2 . 7 2 11 . 3 . . 3 2 4 Max in Single Turn 4 | . . . . . 1 . 1 . . . 1 . . . . 1 . 4 1 3 . 1 . . 1 1 1 Garrison Access 11 | . . . . . . 1 . . . . 1 . . . . 1 . . . 1 . . . . 1 1 5 Garrison Relay 1 | . . . . . . . . . . . . . . . . . . . 1 . . . . . . . . Machines Sabotaged . | . . . . . . . . . . . . . . . . . . . . . . . . . . . . Garrisons Compromised . | . . . . . . . . . . . . . . . . . . . . . . . . . . . . Overloaded Fab Kills . | . . . . . . . . . . . . . . . . . . . . . . . . . . . . Fab Network Shutdowns 1 | . . . . . . . . . . . . . . . . . . . . . . . . . . . 1 Hacking | -11 -10 -10 -10 -9 -8 -7 -7 -7 -7 -6 -6 -6 -6 -6 -5 -5 -5 -5 -5 -4 -4 -4 -4 -3 -3 -2 -1 --------- Run | Scr Mat Min Exi Min Mat Fac Low Low Zio Pro Fac Low Low Dat Pro Fac Was Fac Gar Fac Upp Upp War Pro Res Res Acc Machines Accessed 77 | . 4 . 4 . 2 9 . . . . 7 1 . 4 1 12 . 2 . 3 1 1 . . 7 7 12 Terminals 45 | . 4 . . . 2 5 . . . . 5 . . . 1 7 . 1 . 1 1 1 . . 5 6 6 Fabricators 6 | . . . . . . 1 . . . . 1 . . . . 1 . . . 1 . . . . 1 . 1 Repair Stations 1 | . . . . . . . . . . . . . . . . 1 . . . . . . . . . . . Recycling Units 1 | . . . . . . . . . . . . . . . . 1 . . . . . . . . . . . Scanalyzers 3 | . . . . . . 2 . . . . . . . . . 1 . . . . . . . . . . . Garrison Access 12 | . . . . . . 1 . . . . 1 . . . . 1 . 1 . 1 . . . . 1 1 5 Total Hacks 226 | . 11 . 6 . 7 24 . . . . 35 1 . 25 5 31 . 9 . 8 4 7 . . 16 17 20 Successful 116 | . 6 . 6 . 1 8 . . . . 15 1 . 25 2 12 . 2 . 2 1 6 . . 10 9 10 Failed 109 | . 5 . . . 6 16 . . . . 20 . . . 3 19 . 7 . 6 3 . . . 6 8 10 Catastrophic 24 | . 1 . . . 1 3 . . . . 4 . . . 1 4 . 1 . . . . . . 3 2 4 Database Lockouts 1 | . . . . . . . . . . . . . . . . . . . . . . 1 . . . . . Manual 54 | . 3 . 1 . 7 4 . . . . 11 . . . 5 2 . 3 . . 4 2 . . 5 4 3 Terminals 150 | . 11 . . . 7 19 . . . . 29 . . . 5 20 . 4 . 4 4 7 . . 11 16 13 Fabricators 17 | . . . . . . 1 . . . . 4 . . . . 3 . . . 3 . . . . 4 . 2 Repair Stations 1 | . . . . . . . . . . . . . . . . 1 . . . . . . . . . . . Recycling Units 3 | . . . . . . . . . . . . . . . . 3 . . . . . . . . . . . Scanalyzers 4 | . . . . . . 3 . . . . . . . . . 1 . . . . . . . . . . . Garrison Access 19 | . . . . . . 1 . . . . 2 . . . . 3 . 5 . 1 . . . . 1 1 5 Terminal Hacks 89 | . 6 . 6 . 1 7 . . . . 11 1 . 25 2 7 . 1 . 1 1 6 . . 5 6 3 Record 24 | . . . 5 . . . . . . . 1 . . 11 . . . 1 . . . 5 . . . 1 . Part Schematic 16 | . . . . . . . . . . . 2 . . 7 2 2 . . . . 1 1 . . 1 . . Robot Schematic 5 | . . . . . . 1 . . . . . . . 4 . . . . . . . . . . . . . Prototype ID Bank 10 | . 1 . . . . 2 . . . . 1 . . 3 . 1 . . . . . . . . 1 1 . Open Door 1 | . . . . . . . . . . . . 1 . . . . . . . . . . . . . . . Level Access Points 1 | . . . . . 1 . . . . . . . . . . . . . . . . . . . . . . Branch Access Points 2 | . 1 . . . . . . . . . . . . . . . . . . 1 . . . . . . . Emergency Access Points 1 | . . . . . . . . . . . 1 . . . . . . . . . . . . . . . . Terminal Index 3 | . . . . . . 1 . . . . 1 . . . . . . . . . . . . . . . 1 Garrison Index 1 | . . . . . . . . . . . . . . . . . . . . . . . . . . . 1 Unreport Threat 5 | . . . . . . 1 . . . . . . . . . . . . . . . . . . 1 3 . Locate Traps 5 | . . . . . . 1 . . . . 1 . . . . 1 . . . . . . . . 2 . . Dispatch Records 1 | . 1 . . . . . . . . . . . . . . . . . . . . . . . . . . Transport Status 1 | . . . . . . . . . . . 1 . . . . . . . . . . . . . . . . Recall Assault 1 | . . . . . . . . . . . . . . . . 1 . . . . . . . . . . . Hauler Manifests 2 | . . . . . . . . . . . 1 . . . . 1 . . . . . . . . . . . Registered Components 6 | . 1 . . . . 1 . . . . 1 . . . . 1 . . . . . . . . . 1 1 Registered Prototypes 1 | . . . . . . . . . . . 1 . . . . . . . . . . . . . . . . Zone Layout 2 | . 2 . . . . . . . . . . . . . . . . . . . . . . . . . . EX-Prototype ID Bank 1 | . . . 1 . . . . . . . . . . . . . . . . . . . . . . . . Fabricator Hacks 8 | . . . . . . . . . . . 2 . . . . 2 . . . . . . . . 2 . 2 Load Schematic 4 | . . . . . . . . . . . 1 . . . . 1 . . . . . . . . 1 . 1 Build 4 | . . . . . . . . . . . 1 . . . . 1 . . . . . . . . 1 . 1 Repair Station Hacks . | . . . . . . . . . . . . . . . . . . . . . . . . . . . . Recycling Unit Hacks 1 | . . . . . . . . . . . . . . . . 1 . . . . . . . . . . . Retrieve Components 1 | . . . . . . . . . . . . . . . . 1 . . . . . . . . . . . Scanalyzer . | . . . . . . . . . . . . . . . . . . . . . . . . . . . . Garrison Access Hacks 12 | . . . . . . 1 . . . . 1 . . . . 1 . 1 . 1 . . . . 1 1 5 Unlock Access 1 | . . . . . . . . . . . . . . . . . . 1 . . . . . . . . . Seal Access 11 | . . . . . . 1 . . . . 1 . . . . 1 . . . 1 . . . . 1 1 5 Unauthorized Hacks 6 | . . . . . . . . . . . 1 . . . . 1 . . . . . . . . 2 2 . Terminals 3 | . . . . . . . . . . . . . . . . . . . . . . . . . 1 2 . Botnet 3 | . . . . . . . . . . . . . . . . . . . . . . . . . 1 2 . Fabricators 2 | . . . . . . . . . . . 1 . . . . . . . . . . . . . 1 . . Prioritize 2 | . . . . . . . . . . . 1 . . . . . . . . . . . . . 1 . . Repair Stations 1 | . . . . . . . . . . . . . . . . 1 . . . . . . . . . . . Mechanics 1 | . . . . . . . . . . . . . . . . 1 . . . . . . . . . . . Recycling Units . | . . . . . . . . . . . . . . . . . . . . . . . . . . . . Scanalyzers . | . . . . . . . . . . . . . . . . . . . . . . . . . . . . Garrison Access . | . . . . . . . . . . . . . . . . . . . . . . . . . . . . Data Cores Recovered . | . . . . . . . . . . . . . . . . . . . . . . . . . . . . Used . | . . . . . . . . . . . . . . . . . . . . . . . . . . . . Hacking Detections 50 | . 4 . . . 2 6 . . . . 4 . . . 1 8 . 2 . 2 1 1 . . 6 6 7 Full Trace Events 13 | . 2 . . . . 2 . . . . . . . . 1 2 . 1 . . 1 1 . . 1 . 2 Feedback Events 2 | . . . . . . . . . . . . . . . . . . . . . . . . . 1 . 1 Corruption 2 | . . . . . . . . . . . . . . . . . . . . . . . . . 1 . 1 Feedback Blocked . | . . . . . . . . . . . . . . . . . . . . . . . . . . . . Robot Schematics Acquired 5 | . . . . . . 1 . . . . . . . 4 . . . . . . . . . . . . . Robots Built . | . . . . . . . . . . . . . . . . . . . . . . . . . . . . Matter . | . . . . . . . . . . . . . . . . . . . . . . . . . . . . Time . | . . . . . . . . . . . . . . . . . . . . . . . . . . . . Total Robot Build Rating . | . . . . . . . . . . . . . . . . . . . . . . . . . . . . Part Schematics Acquired 16 | . . . . . . . . . . . 2 . . 7 2 2 . . . . 1 1 . . 1 . . Parts Built 5 | . . . . . . . . . . . 2 . . . . 1 . . . . . . . . 1 . 1 Matter 1082 | . . . . . . . . . . . 190 . . . . 190 . . . . . . . . 417 . 285 Time 303 | . . . . . . . . . . . 95 . . . . 47 . . . . . . . . 111 . 50 Total Part Build Rating 29 | . . . . . . . . . . . 10 . . . . 5 . . . . . . . . 9 . 5 Parts Repaired . | . . . . . . . . . . . . . . . . . . . . . . . . . . . . Time . | . . . . . . . . . . . . . . . . . . . . . . . . . . . . Parts Recycled . | . . . . . . . . . . . . . . . . . . . . . . . . . . . . Recycled Matter . | . . . . . . . . . . . . . . . . . . . . . . . . . . . . Retrieved Matter . | . . . . . . . . . . . . . . . . . . . . . . . . . . . . Retrieved Components . | . . . . . . . . . . . . . . . . . . . . . . . . . . . . Parts Scanalyzed . | . . . . . . . . . . . . . . . . . . . . . . . . . . . . Part Schematics Acquired . | . . . . . . . . . . . . . . . . . . . . . . . . . . . . Parts Damaged . | . . . . . . . . . . . . . . . . . . . . . . . . . . . . Bothacking | -11 -10 -10 -10 -9 -8 -7 -7 -7 -7 -6 -6 -6 -6 -6 -5 -5 -5 -5 -5 -4 -4 -4 -4 -3 -3 -2 -1 ------------ Run | Scr Mat Min Exi Min Mat Fac Low Low Zio Pro Fac Low Low Dat Pro Fac Was Fac Gar Fac Upp Upp War Pro Res Res Acc Used RIF Installer 1 | . . . . . . . . . . . . . . . . . . . 1 . . . . . . . . Robots Hacked 1 | . . . . . . . . . . . . . . . . 1 . . . . . . . . . . . Non-combat 1 | . . . . . . . . . . . . . . . . 1 . . . . . . . . . . . Combat . | . . . . . . . . . . . . . . . . . . . . . . . . . . . . Robot Hacks Applied 1 | . . . . . . . . . . . . . . . . 1 . . . . . . . . . . . find_chute 1 | . . . . . . . . . . . . . . . . 1 . . . . . . . . . . . Relay Couplers Released 2 | . . . . . . . . . . . . . . . . . . . 2 . . . . . . . . Machine Destruction 2 | . . . . . . . . . . . . . . . . . . . 2 . . . . . . . . Robots Rewired 6 | . . . . . . 2 . . . . 1 . . . . . . . . . . 3 . . . . . Allies Hacked . | . . . . . . . . . . . . . . . . . . . . . . . . . . . . Hacks Repelled . | . . . . . . . . . . . . . . . . . . . . . . . . . . . . Allies | -11 -10 -10 -10 -9 -8 -7 -7 -7 -7 -6 -6 -6 -6 -6 -5 -5 -5 -5 -5 -4 -4 -4 -4 -3 -3 -2 -1 -------- Run | Scr Mat Min Exi Min Mat Fac Low Low Zio Pro Fac Low Low Dat Pro Fac Was Fac Gar Fac Upp Upp War Pro Res Res Acc Total Allies 26 | . . . . . . 2 . . . . 1 . . . 1 . 19 . . . . 3 . . . . . Largest Group 19 | . . . . . . 1 . . . . 1 . . . 1 . 19 17 9 . . 3 . . . . . Highest-Rated Group 714 | . . . . . . 37 . . . . 32 . . . 94 . 714 664 372 . . 138 . . . . . Highest-Rated Ally 94 | . . . . . . 37 . . . . 32 . . . 94 . 50 50 46 . . 46 . . . . . Total Orders 2 | . . . . . . . . . . . . . . . . . . . . . . 2 . . . . . STAY 1 | . . . . . . . . . . . . . . . . . . . . . . 1 . . . . . FOLLOW 1 | . . . . . . . . . . . . . . . . . . . . . . 1 . . . . . Ally Attacks 259 | . . . . . . 1 . . . . 3 . . . 24 . 88 54 40 . . 49 . . . . . Total Damage 7530 | . . . . . . 31 . . . . 122 . . . 837 . 2879 1338 1134 . . 1189 . . . . . Kills 35 | . . . . . . . . . . . 1 . . . 6 . 5 12 6 . . 5 . . . . . Allies Corrupted . | . . . . . . . . . . . . . . . . . . . . . . . . . . . . Allies Melted . | . . . . . . . . . . . . . . . . . . . . . . . . . . . . Intel | -11 -10 -10 -10 -9 -8 -7 -7 -7 -7 -6 -6 -6 -6 -6 -5 -5 -5 -5 -5 -4 -4 -4 -4 -3 -3 -2 -1 ------- Run | Scr Mat Min Exi Min Mat Fac Low Low Zio Pro Fac Low Low Dat Pro Fac Was Fac Gar Fac Upp Upp War Pro Res Res Acc Robot Analysis Total . | . . . . . . . . . . . . . . . . . . . . . . . . . . . . Derelict Logs Recovered 13 | . . 2 . 1 . . . 1 2 1 . 1 1 . 1 . . . . . 2 1 . . . . . Drone Launches . | . . . . . . . . . . . . . . . . . . . . . . . . . . . . Drone Recoveries . | . . . . . . . . . . . . . . . . . . . . . . . . . . . . Exploration | -11 -10 -10 -10 -9 -8 -7 -7 -7 -7 -6 -6 -6 -6 -6 -5 -5 -5 -5 -5 -4 -4 -4 -4 -3 -3 -2 -1 ------------- Run | Scr Mat Min Exi Min Mat Fac Low Low Zio Pro Fac Low Low Dat Pro Fac Was Fac Gar Fac Upp Upp War Pro Res Res Acc Turns Passed 13318 | 31 277 237 146 378 240 497 354 679 422 391 1110 248 285 31 711 838 205 101 645 357 613 819 59 1211 599 662 1172 Spaces Moved 15432 | 30 253 374 255 364 188 742 558 521 768 421 1338 341 520 78 948 1047 200 116 676 410 670 1091 124 451 879 638 1431 Core 2 | 2 . . . . . . . . . . . . . . . . . . . . . . . . . . . Treads . | . . . . . . . . . . . . . . . . . . . . . . . . . . . . Legs . | . . . . . . . . . . . . . . . . . . . . . . . . . . . . Wheels 240 | 28 212 . . . . . . . . . . . . . . . . . . . . . . . . . . Hover 15190 | . 41 374 255 364 188 742 558 521 768 421 1338 341 520 78 948 1047 200 116 676 410 670 1091 124 451 879 638 1431 Flight . | . . . . . . . . . . . . . . . . . . . . . . . . . . . . Fastest Speed 35 | 50 56 56 56 52 52 52 52 52 52 52 40 40 40 40 40 38 38 36 36 36 35 35 35 35 35 45 43 Average Speed 45 | 78 76 56 56 52 52 52 52 83 52 52 46 40 40 40 40 41 38 37 36 49 35 35 35 35 41 45 44 Slowest Speed 116 | 80 80 56 56 56 52 52 112 116 52 52 52 40 40 40 97 98 38 38 36 94 38 35 35 35 94 100 48 Overloaded Moves . | . . . . . . . . . . . . . . . . . . . . . . . . . . . . Propulsion Burnouts . | . . . . . . . . . . . . . . . . . . . . . . . . . . . . Robots Hopped . | . . . . . . . . . . . . . . . . . . . . . . . . . . . . Cave-ins Triggered 2 | . . . . . . . . . . . . . . . . 1 . . . . . 1 . . . . . Exploration Rate (%) 49 | 4 41 82 62 66 24 25 70 59 81 64 27 46 73 70 81 34 78 5 77 16 68 83 15 51 29 20 40 Regions Visited 27 Branch Regions 15 Pre-discovered Areas 5 | . . 1 1 . . . . . 1 1 . . . 1 . . . . . . . . . . . . . Known Exits Taken 20 | . 1 . . . 1 1 1 1 1 1 1 1 1 1 1 . . 1 . 1 1 1 1 1 1 1 . Unknown Exits Taken 4 | 1 . 1 1 1 . . . . . . . . . . . . . . . . . . . . . . . Scrap Searched 29 | . . 2 . 2 . . 3 2 3 3 . 5 2 . 2 . . . . . 1 4 . . . . . Spaces Dug 172 | . . . . . . 4 13 6 . . 6 . 4 . 16 22 1 . . 5 1 4 1 3 17 14 55 Terrain Destroyed 528 | . . 2 . 4 . 6 17 22 . 1 28 16 9 . 40 47 7 21 38 97 9 28 1 18 22 26 69 Melee . | . . . . . . . . . . . . . . . . . . . . . . . . . . . . Projectile 391 | . . 2 . 4 . 6 17 15 . 1 9 16 9 . 36 39 7 2 38 17 9 28 1 18 22 26 69 AOE 137 | . . . . . . . . 7 . . 19 . . . 4 8 . 19 . 80 . . . . . . . Terrain Rammed . | . . . . . . . . . . . . . . . . . . . . . . . . . . . . Walls Destroyed . | . . . . . . . . . . . . . . . . . . . . . . . . . . . . Machines Disabled . | . . . . . . . . . . . . . . . . . . . . . . . . . . . . Actions | -11 -10 -10 -10 -9 -8 -7 -7 -7 -7 -6 -6 -6 -6 -6 -5 -5 -5 -5 -5 -4 -4 -4 -4 -3 -3 -2 -1 --------- Run | Scr Mat Min Exi Min Mat Fac Low Low Zio Pro Fac Low Low Dat Pro Fac Was Fac Gar Fac Upp Upp War Pro Res Res Acc Total 20323 | 34 312 387 257 460 272 830 597 680 784 556 1702 431 575 77 1221 1337 280 163 947 497 1021 1422 137 1450 1082 965 1847 Wait 3072 | . 23 6 2 46 21 32 23 59 7 81 156 60 28 . 178 158 35 23 66 29 320 173 13 928 115 240 250 Move 15404 | 29 252 373 254 363 187 741 557 520 767 420 1337 340 519 77 947 1047 199 116 673 409 669 1090 123 450 878 637 1430 Hop . | . . . . . . . . . . . . . . . . . . . . . . . . . . . . Pick Up 47 | . 1 . 1 . . 2 . 1 . . 4 4 2 . 6 1 2 . 4 2 1 9 . 1 3 3 . Fast Attach 125 | 5 9 . . 1 6 6 4 4 . 1 10 4 1 . 7 12 . 9 . 4 4 . . 3 18 6 11 Attach 9 | . . . . . . 1 . . . . 1 1 . . . 1 . . . . . 1 . 2 1 1 . Detach 5 | . . . . . . 1 1 . . . . . . . . 1 . . . 1 . . . . 1 . . Swap 33 | . . . . . . 2 . 3 2 1 3 . . . . 5 1 . . 3 2 1 . 4 2 1 3 Drop 158 | . 8 . . . 4 9 1 4 2 1 12 7 3 . 12 16 2 8 5 5 4 9 . 6 19 10 11 Fire 920 | . 13 7 . 45 28 14 11 60 6 36 125 10 10 . 33 72 25 5 62 33 11 85 1 41 31 48 108 Melee . | . . . . . . . . . . . . . . . . . . . . . . . . . . . . Ram 9 | . 1 . . . . . . . . . 6 . . . . . . 1 . . . . . . . . 1 Kick . | . . . . . . . . . . . . . . . . . . . . . . . . . . . . Crush . | . . . . . . . . . . . . . . . . . . . . . . . . . . . . Escape Stasis 94 | . . . . . . . . . . 3 13 . . . . . . . 78 . . . . . . . . Rewire 49 | . . 1 . . . 19 . . . . 2 . . . . . . . . . . 27 . . . . . Trap . | . . . . . . . . . . . . . . . . . . . . . . . . . . . . Miscellaneous 398 | . 5 . . 5 26 3 . 29 . 13 33 5 12 . 38 24 16 1 59 11 10 27 . 15 14 19 33 Route ------- -11/Scrapyard -10/Materials (discovered 2 exits: *Min x2) -10/Mines (discovered 3 exits: [*Mat x2] / *Exi) -10/Exiles -9/Mines -8/Materials (discovered 3 exits: *Fac x3) -7/Factory (discovered 2 exits: Fac / *Low) -7/Lower Caves -7/Lower Caves (discovered 2 exits: Fac / *Zio) -7/Zion -6/Proximity Caves -6/Factory (discovered 2 exits: *Fac / *Low) -6/Lower Caves -6/Lower Caves (discovered 2 exits: *Fac / *Dat) -6/Data Miner -5/Proximity Caves -5/Factory (discovered 4 exits: *Fac x2 / Upp x2) -5/Waste -5/Factory -5/Garrison (discovered 3 exits: *Fac x3) -4/Factory (discovered 2 exits: *Upp x2) -4/Upper Caves -4/Upper Caves -4/Warlord -3/Proximity Caves -3/Research (discovered 3 exits: *Res x2 / Tes) -2/Research (discovered 2 exits: *Acc / [Qua]) -1/Access (discovered 2 exits: *Sur / [Com]) To Epsilon Eridani History --------- Turn | Location | Event 1 | -11/Scrapyard | Upgraded with Propulsion slot (x1) 1 | -11/Scrapyard | Upgraded with Utility slot (x1) 1 | -11/Scrapyard | Upgraded with Weapon slot (x1) 7 | -11/Scrapyard | Discovered new exit (range 15) 32 | -11/Scrapyard | Entered Materials 190 | -10/Materials | Identified exit to Mines 309 | -10/Materials | Entered Mines 312 | -10/Mines | Assembled infested the area 313 | -10/Mines | Learned 4 Materials zone layouts 320 | -10/Mines | Build established: Mutant 391 | -10/Mines | Discovered new exit (range 14) 402 | -10/Mines | Learned Materials terminal intel 410 | -10/Mines | Learned location of Storage (-7) 460 | -10/Mines | Discovered new exit (range 6) 490 | -10/Mines | Discovered new exit (range 5) 546 | -10/Mines | Entered Exiles 560 | -10/Exiles | Met 8R-AWN 569 | -10/Exiles | Met EX-HEX 586 | -10/Exiles | Met EX-BIN 594 | -10/Exiles | Reached level 2 594 | -10/Exiles | Aligned with FarCom system 594 | -10/Exiles | Given EX-Vault access code 607 | -10/Exiles | Opened EX-Vault 611 | -10/Exiles | Found Gui. Plasma Cannon 634 | -10/Exiles | Warned to stay clear of 0b10 Research branches 652 | -10/Exiles | Met EX-DEC 656 | -10/Exiles | Learned location of Zion (-7) 685 | -10/Exiles | Discovered new exit (range 10) 692 | -10/Exiles | Left Exiles lab with Gui. Plasma Cannon 692 | -10/Exiles | Entered Mines 727 | -9/Mines | Upgraded with Propulsion slot (x1) 788 | -9/Mines | Excavation squad dispatched 788 | -9/Mines | A large section of the Mines collapsed 990 | -9/Mines | Learned Materials terminal intel 1002 | -9/Mines | Reached level 3 1038 | -9/Mines | Excavation squad dispatched 1059 | -9/Mines | Discovered new exit (range 8) 1070 | -9/Mines | Entered Materials 1071 | -8/Materials | Identified exit to Factory 1072 | -8/Materials | Loaded intel: 12 terminal locations 1072 | -8/Materials | Reached level 4 1093 | -8/Materials | Upgraded with Utility slot (x1) 1310 | -8/Materials | Entered Factory 1312 | -7/Factory | Reached level 5 1356 | -7/Factory | Upgraded with Utility slot (x1) 1384 | -7/Factory | Build established: Scout 1624 | -7/Factory | Discovered new exit (range 22) 1733 | -7/Factory | Reached level 6 1740 | -7/Factory | Discovered new exit (range 7) 1743 | -7/Factory | Identified exit to Lower Caves 1807 | -7/Factory | Entered Lower Caves 2030 | -7/Lower Caves | Found Alien Artifact 2030 | -7/Lower Caves | Identified Core Expander 2030 | -7/Lower Caves | Installed Core Expander, added new Utility slot 2101 | -7/Lower Caves | Discovered new exit (range 13) 2108 | -7/Lower Caves | Identified exit to Lower Caves 2161 | -7/Lower Caves | Entered another Lower Caves area 2170 | -7/Lower Caves | Imp. Hover Unit stolen by Master Thief 2223 | -7/Lower Caves | Reached level 7 2246 | -7/Lower Caves | Discovered new exit (range 20) 2372 | -7/Lower Caves | Learned Factory terminal intel 2477 | -7/Lower Caves | Build established: Hacker-Skirmisher 2676 | -7/Lower Caves | Reached level 8 2714 | -7/Lower Caves | Discovered new exit (range 7) 2719 | -7/Lower Caves | Identified exit to Zion 2840 | -7/Lower Caves | Entered Zion 2865 | -7/Zion | Discovered new exit (range 15) 2874 | -7/Zion | Given A8's code to call for help 2940 | -7/Zion | Build established: Hacker-Scout 2952 | -7/Zion | Learned Factory emergency access door positions 2953 | -7/Zion | Learned location of Warlord (-4) 2956 | -7/Zion | Given the Hacking Drone Bay 3110 | -7/Zion | Learned location of 1 exit from Lower Caves 3133 | -7/Zion | Rebuked by Imprinter 3152 | -7/Zion | Visited the Megawrench Repair Shop 3261 | -7/Zion | Identified exit to Proximity Caves 3262 | -7/Zion | Entered Proximity Caves 3264 | -6/Proximity Caves | Reached level 9 3633 | -6/Proximity Caves | Discovered new exit (range 19) 3653 | -6/Proximity Caves | Identified exit to Factory 3653 | -6/Proximity Caves | Entered Factory 3655 | -6/Factory | Loaded intel: 21 terminal locations 3655 | -6/Factory | Reached level 10 3660 | -6/Factory | Discovered new exit (range 6) 3663 | -6/Factory | Identified exit to Lower Caves 3680 | -6/Factory | Upgraded with Propulsion slot (x1) 3712 | -6/Factory | Found Prototype Processor 3712 | -6/Factory | Identified Exp. Signal Interpreter 3808 | -6/Factory | Reached level 11 3987 | -6/Factory | Upgraded with Utility slot (x1) 4111 | -6/Factory | Reached level 12 4520 | -6/Factory | Fabricated Imp. Particle Charger (x2) 4531 | -6/Factory | Discovered new exit (range 17) 4603 | -6/Factory | Identified exit to Factory 4731 | -6/Factory | Upgraded with Weapon slot (x1) 4763 | -6/Factory | Entered Lower Caves 4764 | -6/Lower Caves | Identified exit to Lower Caves 4765 | -6/Lower Caves | Reached level 13 4784 | -6/Lower Caves | Upgraded with Weapon slot (x1) 4807 | -6/Lower Caves | Encountered a Warlord checkpoint 4807 | -6/Lower Caves | Learned Factory terminal intel 5011 | -6/Lower Caves | Entered another Lower Caves area 5079 | -6/Lower Caves | Discovered exit to Factory (range 15) 5087 | -6/Lower Caves | Learned Factory terminal intel 5223 | -6/Lower Caves | Attracted the attention of an 0b10 checkpoint 5246 | -6/Lower Caves | Discovered new exit (range 5) 5248 | -6/Lower Caves | Identified exit to Data Miner 5296 | -6/Lower Caves | Entered Data Miner 5296 | -6/Data Miner | Discovered new exit (range 6) 5298 | -6/Data Miner | Reached level 14 5304 | -6/Data Miner | Met Data Miner 5311 | -6/Data Miner | Learned location of Section 7 (-2) 5311 | -6/Data Miner | Acquired the access code to Warlord's prototype stash 5317 | -6/Data Miner | Received God Mode back door access code from Data Miner 5327 | -6/Data Miner | Identified exit to Proximity Caves 5327 | -6/Data Miner | Upgraded with Power slot (x1) 5327 | -6/Data Miner | Entered Proximity Caves 5329 | -5/Proximity Caves | Reached level 15 5525 | -5/Proximity Caves | Learned location of 1 exit from Factory 5557 | -5/Proximity Caves | Discovered exit to Factory (range 7) 5561 | -5/Proximity Caves | Escorted by Enhanced Grunt 5804 | -5/Proximity Caves | Spotted B-75 Beast 5811 | -5/Proximity Caves | Reached level 16 5811 | -5/Proximity Caves | Destroyed B-75 Beast 6038 | -5/Proximity Caves | Entered Factory 6039 | -5/Factory | Identified exit to Upper Caves 6040 | -5/Factory | Reached level 17 6041 | -5/Factory | Loaded intel: 20 terminal locations 6109 | -5/Factory | Upgraded with Utility slot (x1) 6220 | -5/Factory | Upgraded with Propulsion slot (x1) 6463 | -5/Factory | Reached level 18 6485 | -5/Factory | Discovered new exit (range 17) 6507 | -5/Factory | Identified exit to Factory 6527 | -5/Factory | Incoming investigation squad redirected 6550 | -5/Factory | Crushed by falling debris 6638 | -5/Factory | First assault squad dispatched 6703 | -5/Factory | Fabricated Imp. Armor Integrity Analyzer (x1) 6768 | -5/Factory | Incoming investigation squad redirected 6797 | -5/Factory | Discovered exit to Factory (range 16) 6876 | -5/Factory | Sucked down chute 6876 | -5/Factory | Entered Waste 6878 | -5/Waste | Reached level 19 6891 | -5/Waste | EMP discharged 6891 | -5/Waste | System corruption reached 10% 6895 | -5/Waste | Spotted C-40 Crusher 6915 | -5/Waste | Destroyed C-40 Crusher 6926 | -5/Waste | Spotted C-40 Crusher 6956 | -5/Waste | Destroyed C-40 Crusher 6973 | -5/Waste | Met Warlord forces unprepared to attack 6979 | -5/Waste | Spotted C-40 Crusher 6985 | -5/Waste | Destroyed C-40 Crusher 6991 | -5/Waste | EMP discharged 7005 | -5/Waste | Spotted C-40 Crusher 7009 | -5/Waste | Allies destroyed C-40 Crusher 7015 | -5/Waste | Spotted C-40 Crusher 7019 | -5/Waste | Spotted C-40 Crusher 7024 | -5/Waste | Allies destroyed C-40 Crusher 7033 | -5/Waste | Allies destroyed C-40 Crusher 7040 | -5/Waste | Discovered new exit (range 17) 7046 | -5/Waste | Identified exit to Factory 7081 | -5/Waste | Entered Factory 7081 | -5/Factory | Accompanied by 17 allies 7082 | -5/Factory | Loaded intel: 20 terminal locations 7109 | -5/Factory | Garrison activated, responded to threat 7116 | -5/Factory | Reached level 20 7142 | -5/Factory | Upgraded with Utility slot (x1) 7147 | -5/Factory | Reached level 21 7161 | -5/Factory | Identified exit to Garrison 7182 | -5/Factory | Entered Garrison 7182 | -5/Garrison | Accompanied by 9 allies 7199 | -5/Garrison | Triggered checkpoint 7286 | -5/Garrison | Reached level 22 7309 | -5/Garrison | Spotted B-75 Beast 7356 | -5/Garrison | Destroyed 9 combat bots 7364 | -5/Garrison | Triggered checkpoint 7367 | -5/Garrison | Destroyed B-75 Beast 7454 | -5/Garrison | Destroyed 7 combat bots 7467 | -5/Garrison | Discovered exit to Factory (range 15) 7545 | -5/Garrison | Attempted to access garrison exit controls, blocked by remote lockdown 7570 | -5/Garrison | Triggered checkpoint 7625 | -5/Garrison | Installed Relay Interface Framework 7663 | -5/Garrison | Discovered exit to Factory (range 20) 7704 | -5/Garrison | Triggered checkpoint 7735 | -5/Garrison | Discovered exit to Factory (range 18) 7827 | -5/Garrison | Entered Factory 7829 | -4/Factory | Reached level 23 7844 | -4/Factory | Upgraded with Utility slot (x1) 7856 | -4/Factory | Identified exit to Upper Caves 7885 | -4/Factory | Reached level 24 8184 | -4/Factory | Entered Upper Caves 8218 | -4/Upper Caves | Encountered a Warlord checkpoint 8267 | -4/Upper Caves | Upgraded with Propulsion slot (x1) 8552 | -4/Upper Caves | Learned Research terminal intel 8557 | -4/Upper Caves | Learned Research garrison access intel 8612 | -4/Upper Caves | Discovered new exit (range 9) 8616 | -4/Upper Caves | Identified exit to Upper Caves 8797 | -4/Upper Caves | Entered another Upper Caves area 8855 | -4/Upper Caves | Learned location of 1 exit from Research 8875 | -4/Upper Caves | Attacked by a delusional Derelict stockpiling Unaware 8965 | -4/Upper Caves | Reached level 25 9056 | -4/Upper Caves | Spotted B-86 Titan 9075 | -4/Upper Caves | Destroyed B-86 Titan 9201 | -4/Upper Caves | Central database locked down 9201 | -4/Upper Caves | Learned Armory garrison access intel 9201 | -4/Upper Caves | Learned Extension garrison access intel 9201 | -4/Upper Caves | Learned Extension stockpile data 9201 | -4/Upper Caves | Learned Extension emergency access door positions 9214 | -4/Upper Caves | Attracted the attention of an 0b10 base 9248 | -4/Upper Caves | Learned location of 1 exit from Factory 9421 | -4/Upper Caves | Discovered new exit (range 15) 9426 | -4/Upper Caves | Identified exit to Warlord 9536 | -4/Upper Caves | Crushed by falling debris 9616 | -4/Upper Caves | Entered Warlord 9639 | -4/Warlord | Discovered new exit (range 13) 9654 | -4/Warlord | Opened side exit 9658 | -4/Warlord | RIF detected upon attempting to enter Warlord's base 9658 | -4/Warlord | Attacked by Warlord forces 9674 | -4/Warlord | Identified exit to Proximity Caves 9675 | -4/Warlord | Entered Proximity Caves 9677 | -3/Proximity Caves | Reached level 26 9838 | -3/Proximity Caves | Build established: Scout 9971 | -3/Proximity Caves | Upgraded with Utility slot (x1) 10883 | -3/Proximity Caves | Discovered new exit (range 9) 10885 | -3/Proximity Caves | Identified exit to Research 10886 | -3/Proximity Caves | Entered Research 10887 | -3/Research | Identified exit to Testing 10888 | -3/Research | Loaded intel: 20 terminal locations 10888 | -3/Research | Reached level 27 10889 | -3/Research | Loaded intel: 4 garrison access locations 10976 | -3/Research | Incoming investigation squad redirected 11113 | -3/Research | Discovered new exit (range 5) 11120 | -3/Research | Identified exit to Research 11200 | -3/Research | Reached level 28 11235 | -3/Research | Spotted B-86 Titan 11335 | -3/Research | Fabricated Adv. Particle Accelerator (x1) 11460 | -3/Research | Discovered exit to Research (range 3) 11482 | -3/Research | Upgraded with Utility slot (x1) 11482 | -3/Research | Found Adv. Powered Armor 11485 | -3/Research | Entered another Research area 11487 | -2/Research | Reached level 29 11824 | -2/Research | Discovered new exit (range 23) 11961 | -2/Research | Reached level 30 12079 | -2/Research | Spotted B-90 Cyclops 12108 | -2/Research | Discovered new exit (range 8) 12120 | -2/Research | Identified exit to Access 12147 | -2/Research | Entered Access 12149 | -1/Access | Reached level 31 12205 | -1/Access | Fabricated Exp. Terrain Scanner (x1) 12322 | -1/Access | Incoming investigation squad redirected 12476 | -1/Access | Reached level 32 12638 | -1/Access | Local fabrication network quarantined 12844 | -1/Access | Discovered new exit (range 28) 13007 | -1/Access | Discovered new exit (range 18) 13092 | -1/Access | Reached level 33 13137 | -1/Access | Maximum security lockdown engaged 13228 | -1/Access | Spotted B-99 Colossus 13249 | -1/Access | Identified exit to Surface 13265 | -1/Access | Destroyed B-99 Colossus 13319 | *** | Escaped! Last Messages --------------- 13265_ B-99 Colossus destroyed. 13293_ K-01 Serf destroyed. 13294_ K-01 Serf collects debris. 13295_ K-01 Serf destroyed. 13297_ K-01 Serf collects debris. 13297_ K-01 Serf destroyed. 13297_ K-01 Serf collects debris. 13299_ Exp. Terrain Scanner permanently disabled. 13299_ Overload: Short circuit. 13299_ Terminal disabled. 13301_ K-01 Serf collects debris. 13301_ K-01 Serf suffers critical hit. 13301_ Destroyed Lgt. Ion Engine. 13303_ Destroyed Wheel. 13303_ K-01 Serf destroyed. 13307_ PTMVV X2D=XF&LFOF|BPWBAJMUDSESL77LMXBX 13307_ Destroyed Hpw. Tractor Beam. 13307_ Destroyed Com. Wheel. 13309_ R-10 Processor destroyed. 13317_ Dropped Broken Exp. Terrain Scanner. Map ----- +----------------------------------------------------+ | ??#?#### ? ? ?""?" ?# # ? ? #####?#?#?#??# | | ##?# ?" "? # #?? ? ##?##??#?###?# | | ? ??#?? t ? # ?? ##?###?#?#?#?# | | ?##? #? # ? ? ? #####?#?##?### | | ? ? ?##? ? ? w? ?# # ? ?? ? | | ?#?# ? # ?#???###?#??################ | | ? ?#?## + ########?###############??? | | ? ? #### ? # ##?#####??#######?########? | | ? #?## # ####?#?##?##?############## | | #??#?######?######### ################?##?#?#?### | | ####################? ##?#### ############### | | ##?######## ? #############?# | | #?#?#######? ? ? ? ? ############### | | ########### ####### #####?# ? ####### | | ########### ?#??#####"################### ? | | ########### ######?## ###?###?########### " | | ########### ?##?##### #########?########? """ | | ########### #######?# #########?#########? """ | | ###?####### ??##?#### ################### " | | ########### #######"#"################### ? | | ########### """T"""" "?"" #? | | ##########" %" """" R? """" BB # | | #?######### = " """""" """? BB ###+##### | | ###?####### " " """"? ## | | ###########%*%! " " "" " """" # | | ##########; = ! @" " """" # | | ########### %= " " " """" # | | ########### * " "" """ "" "C%[! ### # | | ########### =! " CC!]! ### # | | ########### =%[ " """" = ### # | | ########### #######"####;################## # | | #######?### #######?####################### # | | ########### "############################## # | | ## / # # """"""""""" # ######### # | | ## # # """"T"""" # ######### # | | ## + # # ######### # | | ## # # # ######### ## | | ## + # ###+#### ## | | ## # # + ## | | ## # # ### ## | | ## # # ### | | ## # # ### | | ###/####### # = ### | | ### ####### ######+############ ^ | | ### ####### | | ### ####### | | ### ####### ##+############## ^ ^ " | | ### ####### # ## """ | | # ## ^ """" | | # ] ## """ | +----------------------------------------------------+ Best States ------------- Heat Dissipation 140 Coolant Potential 65 Energy Generation 55 Energy Capacity 1400 Matter Stores 300 Matter Capacity 300 Sight Range 24 Robot Scan Range 26 Terrain Scan Range 30 Terrain Scan Density 210 Power Amplification 20 Additional Mass Support 12 Corruption Prevention 20 Armor Coverage 400 Resistance: KI 20 Resistance: TH 20 Weapon Cycling 20 Evasion (%) 58 Targeting Accuracy 8 Core Analysis 10 Armor Integrity Analysis 50 Energy Filtering 30 Particle Charging 50 Offensive Hacking 24 Defensive Hacking 25 Item Schematics ----------------- Imp. Particle Charger | -6/Factory | Hacked Adv. Cooling System | -6/Factory | Hacked Combat Drone Bay | -6/Data Miner | Free Lgt. Regenerative Plating | -6/Data Miner | Free Exp. Terrain Scanner | -6/Data Miner | Free Tactical Coordination Suite | -6/Data Miner | Free Exp. Transmission Jammer | -6/Data Miner | Free Mni. Smartbomb Launcher | -6/Data Miner | Free Kinetic Spear | -6/Data Miner | Free Adv. Hacking Suite | -5/Proximity Caves | Hacked Imp. Armor Integrity Analyzer | -5/Proximity Caves | Hacked Q-thruster | -5/Factory | Hacked Adv. Core Analyzer | -5/Factory | Hacked Adv. Particle Charger | -4/Upper Caves | Hacked Imp. Recalibrator | -4/Upper Caves | Hacked Adv. Particle Accelerator | -3/Research | Hacked Robot Schematics ------------------ B-48 Gladiator | -7/Factory | Hacked S-27 Virus | -6/Data Miner | Free G-50 Soldier | -6/Data Miner | Free H-66 Slayer | -6/Data Miner | Free I-47 Archangel | -6/Data Miner | Free Fabricated ------------ Imp. Particle Charger | x2 | -6/Factory Imp. Armor Integrity Analyzer | x1 | -5/Factory Adv. Particle Accelerator | x1 | -3/Research Exp. Terrain Scanner | x1 | -1/Access Alien Tech Used ----------------- Core Expander Achievements -------------- None Challenges ------------ None RPGLIKE | -11 -10 -10 -10 -9 -8 -7 -7 -7 -7 -6 -6 -6 -6 -6 -5 -5 -5 -5 -5 -4 -4 -4 -4 -3 -3 -2 -1 --------- Run | Scr Mat Min Exi Min Mat Fac Low Low Zio Pro Fac Low Low Dat Pro Fac Was Fac Gar Fac Upp Upp War Pro Res Res Acc Levels Raised 32 | . . . 1 1 1 2 . 2 . 1 3 1 . 1 2 2 1 2 1 2 . 1 . 1 2 2 3 XP Earned 51567 | 3000 660 600 350 1500 2625 2155 500 2450 650 1600 4582 850 850 650 3327 3586 245 2887 2687 2367 544 1398 170 1587 2102 2991 4654 XP Spent 45260 | 2975 . . 650 850 2390 2100 1250 . 505 550 7280 2440 . 730 . 3570 . 2660 600 5215 2845 . . 2940 3280 2430 . Upgrades 95 | 10 . . 2 2 15 6 2 . 4 1 13 7 . 2 . 5 . 4 1 6 4 . . 3 3 5 . Power Slot 1 | . . . . . . . . . . . . . . 1 . . . . . . . . . . . . . Propulsion Slot 5 | 1 . . . 1 . . . . . . 1 . . . . 1 . . . . 1 . . . . . . Utility Slot 9 | 1 . . . . 1 1 . . . . 1 . . . . 1 . 1 . 1 . . . 1 1 . . Weapon Slot 3 | 1 . . . . . . . . . . 1 1 . . . . . . . . . . . . . . . Core Integrity 20 | 1 . . . . 2 . . . 1 . 2 2 . . . 2 . 2 . 1 1 . . 2 2 2 . Heat Dissipation 14 | . . . . 1 2 1 . . 3 . 1 1 . 1 . 1 . . . 1 1 . . . . 1 . Energy Generation 1 | . . . . . . . . . . . 1 . . . . . . . . . . . . . . . . Mass Support 1 | 1 . . . . . . . . . . . . . . . . . . . . . . . . . . . Inventory Capacity 4 | 1 . . 1 . . . 1 . . . . . . . . . . . . 1 . . . . . . . Sight Range 1 | . . . . . . . . . . . . 1 . . . . . . . . . . . . . . . Sensor Range 13 | . . . . . 8 1 . . . . 3 1 . . . . . . . . . . . . . . . Terrain Scan Density 2 | . . . . . 1 1 . . . . . . . . . . . . . . . . . . . . . Ranged Accuracy 6 | 1 . . . . . . . . . . . 1 . . . . . . 1 . 1 . . . . 2 . Hack Attack % 2 | 1 . . . . . . . . . . . . . . . . . 1 . . . . . . . . . Hack Defense % 1 | . . . . . 1 . . . . . . . . . . . . . . . . . . . . . . KI Resistance % 4 | 2 . . . . . . . . . 1 . . . . . . . . . 1 . . . . . . . TH Resistance % 4 | . . . 1 . . 1 . . . . 1 . . . . . . . . 1 . . . . . . . TH Damage % 4 | . . . . . . 1 1 . . . 2 . . . . . . . . . . . . . . . . Protomatter Created 4348 | . 58 . . 28 193 57 . 248 . 102 434 55 48 . 279 196 167 115 354 195 130 493 . 52 341 240 563 Integrity Restored 7860 | . 91 . . 84 571 61 . 621 . 226 653 75 237 . 787 529 299 4 1271 206 175 473 . 300 234 317 646 Core 6234 | . 88 . . 84 404 46 . 612 . 107 542 12 194 . 579 529 153 . 1016 171 130 422 . 231 171 230 513 Parts 1626 | . 3 . . . 167 15 . 9 . 119 111 63 43 . 208 . 146 4 255 35 45 51 . 69 63 87 133 Protomatter Decayed 1976 | . . 14 . . . 35 . 83 . 24 227 33 . . 78 29 84 53 181 7 113 460 . 24 100 94 337 Game ------ Seed PlasmaSwarmKinecellerator Manual? 0 Play Time 03:27:26 Cumulative 369.4 hours Start 2021.06.11 @ 06:22:56 End 2021.06.11 @ 09:48:49 Sessions 1 Manual Loads 0 Difficulty Rogue Special Mode Winter2019/RPGLIKE Game No. 145 Rogue 145 Adventurer 0 Explorer 0 Win Type 0 Total 24 Types 21/0/2/1/0/0/0/0/0 Lore% 82 Gallery% 87 Achievement% 72 Wizard Run 0 Options --------- ASCII 0 Keyboard 0 Movement Mouse Keybinds 0 Fullscreen 2 Font 12/Smallcaps Map View 83x54 Tactical HUD 1 Map Filters NONE Filters NONE Steam X RUN: 6d31649f-82da-42c7-8845-481ebb1c64c2